bitfinex/quotes_SOLUSD_20220211
["timestamp","ask_amount","ask_price","bid_price","bid_amount"]
[1644570694437,14.2454,105.38,105.31,51.41806309]
[1644570694641,4.746,105.39,105.31,65.66226309]
[1644570694838,4.746,105.4,105.31,79.34226309]
[1644570695737,14.2432,105.39,105.31,79.34226309]
[1644570696137,14.2432,105.39,105.31,51.16806309]
[1644570696138,17.90414404,105.39,105.31,51.16806309]
[1644570696336,17.90414404,105.39,105.31,51.41806309]
[1644570696738,17.90414404,105.39,105.31,65.09806309]
[1644570696940,4.746,105.38,105.31,65.09806309]
[1644570697138,4.746,105.38,105.31,60.35206309]
[1644570697738,14.2432,105.39,105.31,65.09806309]
[1644570698840,14.2432,105.39,105.31,64.84806309]
[1644570699043,4.746,105.38,105.31,64.84806309]
[1644570699947,11.63134261,105.37,105.31,64.84806309]
[1644570700157,11.63134261,105.37,105.31,65.09806309]
[1644570700350,18.9908,105.38,105.31,65.09806309]
[1644570700951,18.9908,105.38,105.31,18.426]
[1644570701152,18.9908,105.38,105.31,4.746]
[1644570701351,21.37446791,105.38,105.31,4.746]
[1644570701955,11.5887341,105.37,105.31,4.746]
[1644570702252,18.9947,105.36,105.29,0.024]
[1644570702454,18.9947,105.36,105.28,0.024]
[1644570702651,21.37836791,105.36,105.28,0.024]
[1644570703153,4.61225099,105.35,105.28,0.024]
[1644570703352,11.5887341,105.33,105.28,0.024]
[1644570703755,11.5887341,105.33,105.26,101.63764217]
[1644570704152,11.5887341,105.33,105.26,62.2694]
[1644570704352,11.5887341,105.33,105.26,62.2454]
[1644570704554,11.5887341,105.33,105.26,61.9954]
[1644570704751,25.8399341,105.33,105.26,62.0194]
[1644570705556,25.8399341,105.33,105.26,66.7674]
[1644570706155,25.8399341,105.33,105.26,67.0174]
[1644570706555,30.5879341,105.33,105.27,43.00613962]
[1644570706858,14.2512,105.33,105.27,43.00613962]
[1644570707655,27.50348781,105.33,105.27,43.00613962]
[1644570708056,27.50348781,105.33,105.26,68.37044267]
[1644570708258,27.50348781,105.33,105.26,63.62244267]
[1644570709160,27.50348781,105.33,105.26,100.12331076]
[1644570710385,14.2512,105.33,105.26,100.12331076]
[1644570711164,14.25,105.34,105.26,100.12331076]
[1644570711364,4.748,105.37,105.27,13.68]
[1644570711564,4.748,105.37,105.29,14.2463]
[1644570711764,4.746,105.38,105.29,14.5203]
[1644570711966,4.746,105.39,105.3,13.68]
[1644570712169,18.79506628,105.41,105.31,4.746]
[1644570712366,34.02174884,105.41,105.33,46.60879353]
[1644570712567,14.2432,105.39,105.33,46.60879353]
[1644570713873,4.77696628,105.41,105.33,46.60879353]
[1644570714073,0.03096628,105.41,105.34,75.0]
[1644570714274,0.03096628,105.43,105.35,4.744]
[1644570714472,0.03096628,105.45,105.36,13.68]
[1644570714675,0.03096628,105.44,105.36,26.32771058]
[1644570714874,0.03096628,105.45,105.37,41.23261579]
[1644570715073,0.03096628,105.45,105.38,13.68]
[1644570715274,0.48554537,105.47,105.39,47.6111699]
[1644570715474,6.09955119,105.49,105.39,110.0796699]
[1644570715475,0.03096628,105.45,105.39,110.0796699]
[1644570715676,0.03096628,105.48,105.39,110.0796699]
[1644570715875,4.77296628,105.48,105.39,110.0796699]
[1644570716075,4.77296628,105.48,105.39,567.79724345]
[1644570716476,4.77296628,105.48,105.39,568.04724345]
[1644570716875,52.22006628,105.49,105.39,582.28134345]
[1644570718790,14.2328,105.47,105.39,582.28134345]
[1644570719590,14.26376628,105.47,105.39,582.28134345]
[1644570719991,0.03096628,105.47,105.39,582.28134345]
[1644570720294,16.98701872,105.48,105.39,582.28134345]
[1644570720493,0.03096628,105.47,105.39,582.28134345]
[1644570720695,16.98701872,105.48,105.39,582.28134345]
[1644570720897,0.03096628,105.47,105.39,582.28134345]
[1644570721096,16.98701872,105.48,105.39,582.28134345]
[1644570721895,14.26256628,105.48,105.39,582.28134345]
[1644570723095,12.57896028,105.47,105.39,582.28134345]
[1644570723296,0.03096628,105.47,105.39,582.28134345]
[1644570723496,14.26256628,105.48,105.39,582.28134345]
[1644570723696,14.26256628,105.48,105.4,4.742]
[1644570723896,14.26256628,105.48,105.4,19.2238]
[1644570724396,14.26256628,105.48,105.41,37.5466371]
[1644570724597,14.2316,105.48,105.41,37.5466371]
[1644570725296,4.19539817,105.47,105.4,18.9738]
[1644570725497,4.742,105.46,105.4,4.742]
[1644570725900,2.38366791,105.45,105.4,4.742]
[1644570726097,4.742,105.44,105.4,4.742]
[1644570726498,14.2384,105.44,105.38,45.38297694]
[1644570726698,0.03096628,105.46,105.38,45.38297694]
[1644570726898,4.77396628,105.49,105.38,45.38297694]
[1644570727099,0.03096628,105.47,105.38,45.38297694]
[1644570727298,4.742,105.46,105.38,45.38297694]
[1644570727497,4.742,105.47,105.38,45.38297694]
[1644570727701,14.2344,105.46,105.4,36.46688952]
[1644570727897,15.67084045,105.46,105.4,36.46688952]
[1644570728099,15.67084045,105.46,105.39,49.0485]
[1644570728600,4.77296628,105.47,105.4,503.03236935]
[1644570728798,4.77296628,105.48,105.4,528.15046935]
[1644570728999,4.742,105.48,105.41,22.5046]
[1644570729200,4.77196628,105.5,105.41,22.5046]
[1644570729401,12.45172224,105.49,105.42,45.30389588]
[1644570729602,4.741,105.48,105.42,45.30389588]
[1644570730004,18.9731,105.48,105.42,45.30389588]
[1644570730305,21.35676791,105.48,105.42,45.30389588]
[1644570731105,18.9731,105.48,105.42,45.30389588]
[1644570731308,14.2321,105.48,105.42,45.30389588]
[1644570731506,4.741,105.49,105.42,45.30389588]
[1644570731706,4.741,105.49,105.42,56.16089588]
[1644570732406,0.03096628,105.51,105.42,86.45356379]
[1644570732407,4.77196628,105.51,105.42,86.45356379]
[1644570732708,0.03096628,105.53,105.43,48.0283]
[1644570732909,4.77096628,105.54,105.44,13.68]
[1644570733107,4.77096628,105.54,105.44,16.06366791]
[1644570733108,0.03096628,105.52,105.44,16.06366791]
[1644570733307,0.03096628,105.53,105.45,43.16905559]
[1644570733508,4.77096628,105.54,105.46,13.68]
[1644570733706,0.03096628,105.53,105.47,38.63491448]
[1644570733907,4.77096628,105.54,105.47,38.63491448]
[1644570734107,4.74,105.54,105.47,38.63491448]
[1644570734306,18.9641,105.54,105.47,38.63491448]
[1644570734508,18.9641,105.54,105.48,352.88986537]
[1644570734707,21.34776791,105.54,105.48,352.88986537]
[1644570734908,21.34776791,105.54,105.47,38.63491448]
[1644570735309,14.2241,105.54,105.47,38.63491448]
[1644570736508,4.739,105.53,105.47,38.63491448]
[1644570736707,18.9631,105.54,105.47,38.63491448]
[1644570737508,0.67788126,105.53,105.47,38.63491448]
[1644570737709,4.739,105.52,105.47,52.85771448]
[1644570737909,14.25326628,105.55,105.47,53.10771448]
[1644570738111,4.738,105.54,105.47,53.10771448]
[1644570738708,4.738,105.54,105.46,14.2239]
[1644570738909,0.03096628,105.54,105.46,14.2239]
[1644570739108,4.739,105.53,105.46,14.4739]
[1644570739310,0.03096628,105.54,105.46,14.4739]
[1644570739509,4.739,105.53,105.46,14.4739]
[1644570739708,14.40213775,105.52,105.46,14.4739]
[1644570740112,14.40213775,105.52,105.45,50.896]
[1644570740416,4.74,105.51,105.45,22.9906]
[1644570741408,1.79884734,105.5,105.45,22.9906]
[1644570741609,1.79884734,105.5,105.43,23.7504]
[1644570741810,4.74,105.49,105.43,23.7504]
[1644570742012,7.15563419,105.5,105.43,23.7504]
[1644570742209,4.741,105.5,105.43,23.7504]
[1644570742409,0.03096628,105.51,105.43,23.7504]
[1644570742610,4.74,105.5,105.43,24.0004]
[1644570742811,18.9691,105.5,105.44,46.24433504]
[1644570743012,14.94101318,105.5,105.43,23.7504]
[1644570743210,14.2291,105.5,105.43,23.7504]
[1644570743813,14.2291,105.5,105.43,28.4904]
[1644570744215,14.2291,105.5,105.44,40.58502865]
[1644570745613,4.74,105.49,105.44,40.58502865]
[1644570745816,18.9691,105.5,105.44,40.58502865]
[1644570747117,18.9691,105.5,105.43,28.4904]
[1644570747918,18.9691,105.5,105.43,42.9682]
[1644570748316,14.25836628,105.51,105.43,42.9682]
[1644570748917,14.25836628,105.51,105.43,65.6564]
[1644570749118,14.25836628,105.51,105.44,43.24812005]
[1644570749318,4.74,105.5,105.44,43.24812005]
[1644570750320,4.74,105.5,105.44,43.49812005]
[1644570751422,4.74,105.5,105.43,60.6664]
[1644570751645,4.74,105.5,105.43,60.9164]
[1644570752322,30.38789166,105.51,105.43,65.6564]
[1644570752521,30.38789166,105.51,105.44,41.13334859]
[1644570753021,14.2274,105.51,105.44,55.60984859]
[1644570753822,4.74,105.5,105.44,50.86984859]
[1644570754228,8.11965165,105.5,105.44,50.86984859]
[1644570755329,4.74,105.5,105.44,50.86984859]
[1644570756030,4.77096628,105.53,105.44,50.86984859]
[1644570756333,4.77096628,105.54,105.46,49.34382348]
[1644570756533,0.03096628,105.54,105.46,63.02382348]
[1644570756730,4.76996628,105.56,105.46,63.27382348]
[1644570756931,0.03096628,105.55,105.47,23.0071]
[1644570757129,4.738,105.54,105.47,23.0071]
[1644570757333,4.76996628,105.55,105.48,39.56284163]
[1644570757530,0.03096628,105.56,105.48,53.24284163]
[1644570757731,1.35655119,105.58,105.49,27.7451]
[1644570757931,0.03096628,105.56,105.49,27.7451]
[1644570758132,4.76796628,105.58,105.49,27.9951]
[1644570758333,4.76796628,105.58,105.5,40.19348357]
[1644570758530,4.76796628,105.58,105.5,68.09208357]
[1644570758730,4.76796628,105.58,105.5,68.34208357]
[1644570758933,4.76796628,105.59,105.51,4.737]
[1644570759149,4.737,105.59,105.51,18.417]
[1644570759350,7.15163419,105.59,105.51,18.667]
[1644570759551,18.6976016,105.59,105.52,38.95442045]
[1644570759750,18.66663532,105.59,105.52,38.95442045]
[1644570759952,30.49926741,105.59,105.52,38.95442045]
[1644570760351,18.9533,105.59,105.52,38.95442045]
[1644570760651,6.06158491,105.6,105.52,39.20442045]
[1644570760853,18.9511,105.6,105.52,53.42012045]
[1644570761252,17.9511,105.6,105.52,53.42012045]
[1644570762050,3.736,105.6,105.52,53.42012045]
[1644570762250,3.736,105.6,105.52,67.10012045]
[1644570764752,0.03096628,105.6,105.52,67.10012045]
[1644570764952,4.76696628,105.61,105.54,47.07073468]
[1644570765152,4.736,105.61,105.54,61.28333468]
[1644570765356,4.736,105.61,105.54,61.53333468]
[1644570769074,5.15791009,105.61,105.54,61.28333468]
[1644570769271,7.541578,105.61,105.54,61.28333468]
[1644570769870,5.15791009,105.61,105.54,61.53333468]
[1644570770771,18.9497,105.61,105.54,61.53333468]
[1644570771678,32.972375,105.61,105.54,61.53333468]
[1644570772577,32.972375,105.61,105.54,61.28333468]
[1644570773776,32.972375,105.61,105.54,61.53333468]
[1644570773976,32.972375,105.61,105.54,14.2126]
[1644570774176,35.35604291,105.61,105.53,22.9138]
[1644570774578,32.972375,105.61,105.53,22.9138]
[1644570774777,32.972375,105.61,105.53,23.1638]
[1644570774976,32.972375,105.61,105.54,34.8937336]
[1644570775978,18.9497,105.61,105.54,34.8937336]
[1644570776180,14.2137,105.61,105.54,35.1437336]
[1644570776379,14.2137,105.61,105.54,34.8937336]
[1644570777079,29.67332038,105.61,105.54,34.8937336]
[1644570777580,29.67332038,105.61,105.53,37.1283]
[1644570777781,29.70428666,105.61,105.53,37.3783]
[1644570777979,29.67332038,105.61,105.53,37.3783]
[1644570778683,29.67332038,105.61,105.54,41.66079905]
[1644570778881,34.40832038,105.61,105.54,41.66079905]
[1644570779083,0.03096628,105.62,105.55,4.735]
[1644570779386,0.03096628,105.62,105.55,41.5835]
[1644570779784,0.03096628,105.62,105.55,41.3335]
[1644570779986,4.735,105.61,105.55,41.3335]
[1644570780184,1.11150033,105.6,105.55,41.3335]
[1644570780492,15.32660033,105.6,105.55,27.6535]
[1644570781186,15.32660033,105.6,105.55,4.735]
[1644570781386,17.71026824,105.6,105.55,4.735]
[1644570781584,17.71026824,105.6,105.53,43.25154611]
[1644570781784,15.35756661,105.6,105.53,43.25154611]
[1644570781986,15.32660033,105.6,105.53,4.735]
[1644570782187,4.736,105.59,105.52,23.7075]
[1644570782487,18.9521,105.59,105.52,38.1727]
[1644570782886,18.9521,105.59,105.52,77.74023742]
[1644570783088,13.46511775,105.58,105.52,77.74023742]
[1644570783486,13.46511775,105.58,105.52,37.9227]
[1644570784687,18.20211775,105.58,105.52,37.9227]
[1644570786004,32.41941775,105.58,105.52,23.7075]
[1644570786204,27.68241775,105.58,105.52,23.7075]
[1644570786704,27.68241775,105.58,105.51,27.6127]
[1644570786904,4.737,105.57,105.51,27.6127]
[1644570787105,2.73586734,105.56,105.51,27.6127]
[1644570787306,2.73586734,105.56,105.51,4.737]
[1644570787707,16.95656734,105.56,105.51,4.737]
[1644570787907,16.95656734,105.56,105.49,14.22]
[1644570788111,16.95656734,105.56,105.49,14.47]
[1644570789212,16.95656734,105.56,105.49,14.22]
[1644570790312,16.95656734,105.56,105.5,36.51558501]
[1644570790511,14.2207,105.56,105.49,14.22]
[1644570791614,25.59216891,105.56,105.49,51.62920267]
[1644570792517,25.59216891,105.56,105.48,78.7357]
[1644570792720,4.738,105.55,105.48,74.2487]
[1644570792916,18.9594,105.55,105.48,74.2487]
[1644570793519,14.2214,105.55,105.48,78.7367]
[1644570794420,14.2214,105.55,105.48,78.9867]
[1644570798730,11.40243519,105.56,105.48,78.9867]
[1644570798930,25.62263519,105.56,105.48,78.9867]
[1644570800134,4.738,105.55,105.48,74.2487]
[1644570800333,18.9592,105.55,105.48,74.2487]
[1644570801136,14.2212,105.55,105.48,74.2487]
[1644570801437,14.2212,105.55,105.48,73.9987]
[1644570802334,18.9592,105.55,105.48,46.0975]
[1644570802534,18.9592,105.55,105.47,4.738]
[1644570802734,2.38366791,105.54,105.47,4.738]
[1644570802938,4.739,105.53,105.47,4.738]
[1644570803138,19.05651618,105.52,105.47,4.738]
[1644570803337,4.739,105.51,105.47,4.738]
[1644570804736,18.966,105.51,105.47,4.738]
[1644570805937,14.227,105.51,105.47,4.738]
[1644570806838,18.966,105.51,105.47,4.738]
[1644570807038,18.966,105.51,105.45,23.8809]
[1644570807238,18.966,105.51,105.45,24.1309]
[1644570807239,14.227,105.51,105.45,24.1309]
[1644570807639,23.79481618,105.52,105.45,38.3565]
[1644570807841,27.7829,105.54,105.45,38.3565]
[1644570808039,27.7829,105.54,105.46,4.739]
[1644570808238,27.7829,105.54,105.46,4.989]
[1644570808441,27.7829,105.54,105.46,4.739]
[1644570808640,27.7829,105.54,105.46,4.989]
[1644570808941,11.36610316,105.53,105.46,4.739]
[1644570809738,25.58990316,105.53,105.46,19.2129]
[1644570810644,25.58990316,105.53,105.47,35.80508316]
[1644570810839,25.58990316,105.53,105.47,0.25]
[1644570811239,25.58990316,105.53,105.46,19.2129]
[1644570813041,25.58990316,105.53,105.46,14.2239]
[1644570813442,25.58990316,105.53,105.46,14.4739]
[1644570813641,25.58990316,105.53,105.46,14.2239]
[1644570814141,4.739,105.52,105.46,14.2239]
[1644570814342,4.739,105.52,105.46,14.4739]
[1644570815543,25.58990316,105.53,105.46,18.9629]
[1644570815943,4.739,105.52,105.46,18.9629]
[1644570816143,4.739,105.52,105.46,4.739]
[1644570816342,14.2286,105.51,105.46,4.739]
[1644570816546,4.83488193,105.49,105.46,4.739]
[1644570816843,4.74,105.5,105.46,4.739]
[1644570817046,4.74,105.52,105.46,4.739]
[1644570817242,4.739,105.53,105.46,4.739]
[1644570817844,14.2281,105.51,105.46,4.739]
[1644570818045,18.9681,105.51,105.46,4.739]
[1644570819171,14.2281,105.51,105.43,18.9682]
[1644570819347,4.74,105.5,105.43,18.9682]
[1644570819645,18.9684,105.5,105.43,18.9682]
[1644570819846,14.2284,105.5,105.43,19.2182]
[1644570820046,4.74,105.49,105.43,0.25]
[1644570820247,4.74,105.49,105.42,38.9353]
[1644570820446,4.741,105.51,105.42,38.6853]
[1644570820648,24.3758,105.49,105.42,24.4555]
[1644570820846,8.80418604,105.48,105.4,24.54074267]
[1644570821049,8.80418604,105.48,105.4,47.44924267]
[1644570821755,8.80418604,105.48,105.4,46.0962]
[1644570822755,14.2337,105.46,105.4,46.0962]
[1644570822960,4.742,105.45,105.4,46.0962]
[1644570823759,11.89304951,105.44,105.4,46.0962]
[1644570823959,26.12924951,105.44,105.4,46.0962]
[1644570824563,14.2362,105.44,105.4,46.0962]
[1644570825160,14.2349,105.45,105.4,46.0962]
[1644570825361,4.742,105.48,105.4,46.0962]
[1644570825562,4.742,105.48,105.41,34.59684829]
[1644570825765,35.26896528,105.49,105.41,39.58784829]
[1644570825766,4.741,105.49,105.41,39.58784829]
[1644570825964,13.68,105.53,105.41,39.58784829]
[1644570825965,4.741,105.51,105.42,16.06366791]
[1644570826163,4.74,105.53,105.43,24.6087]
[1644570826463,14.2291,105.49,105.41,39.58784829]
[1644570826680,12.68609022,105.48,105.41,64.19654829]
[1644570826882,12.68609022,105.48,105.41,29.5997]
[1644570827079,12.68609022,105.48,105.41,29.3497]
[1644570827482,14.2321,105.47,105.41,29.3497]
[1644570827681,4.742,105.46,105.41,4.741]
[1644570827981,4.741,105.47,105.41,4.741]
[1644570828182,4.741,105.47,105.4,23.1877]
[1644570828781,14.2347,105.45,105.4,23.1877]
[1644570829385,14.2347,105.45,105.39,23.8666]
[1644570829582,4.742,105.44,105.37,23.88024267]
[1644570829782,4.742,105.44,105.37,22.5272]
[1644570829783,10.60989487,105.44,105.37,22.5272]
[1644570830784,14.2374,105.43,105.36,1.35304267]
[1644570830984,14.2374,105.43,105.35,50.92364267]
[1644570830985,18.9804,105.43,105.35,50.92364267]
[1644570831184,18.9804,105.43,105.35,49.5706]
[1644570831585,18.9804,105.43,105.35,94.82929233]
[1644570834191,14.2374,105.43,105.36,4.744]
[1644570834393,4.744,105.46,105.36,12.869]
[1644570834593,4.743,105.48,105.37,16.06366791]
[1644570834790,4.742,105.49,105.38,27.5]
[1644570834992,358.09687614,105.5,105.39,36.8431]
[1644570835191,15.96629594,105.49,105.4,52.18870833]
[1644570835391,18.9729,105.48,105.4,61.37770833]
[1644570835594,18.9729,105.48,105.4,87.28747624]
[1644570836592,18.9729,105.48,105.4,39.83976791]
[1644570836793,18.9729,105.48,105.4,54.07146791]
[1644570837594,18.9729,105.48,105.4,100.37620255]
[1644570839098,14.2319,105.48,105.41,4.742]
[1644570839297,14.2319,105.48,105.41,19.2224]
[1644570839797,15.96629594,105.49,105.41,19.2224]
[1644570840000,30.19629594,105.49,105.41,35.28606791]
[1644570841599,15.96629594,105.49,105.41,35.28606791]
[1644570841801,14.2285,105.5,105.41,35.28606791]
[1644570842201,4.741,105.52,105.41,36.63911058]
[1644570842404,4.74,105.53,105.44,14.2256]
[1644570842703,4.74,105.53,105.45,37.6897]
[1644570842901,16.6695383,105.55,105.46,41.67506149]
[1644570843102,16.6695383,105.55,105.46,55.3937294]
[1644570843305,4.76996628,105.55,105.46,55.6437294]
[1644570843501,4.76996628,105.55,105.46,69.3237294]
[1644570844101,0.03096628,105.55,105.47,4.739]
[1644570844306,428.10862699,105.56,105.47,51.0018]
[1644570844704,14.2218,105.55,105.47,65.224]
[1644570844904,4.738,105.54,105.47,60.485]
[1644570845804,4.738,105.54,105.47,74.165]
[1644570848510,14.2218,105.55,105.47,74.165]
[1644570848811,442.32942699,105.56,105.47,74.165]
[1644570849010,442.32942699,105.56,105.47,76.54866791]
[1644570850011,442.32942699,105.56,105.48,4.738]
[1644570850214,442.32942699,105.56,105.48,18.418]
[1644570850415,442.32942699,105.56,105.48,35.27196791]
[1644570850611,442.32942699,105.56,105.48,43.55196791]
[1644570850812,442.32942699,105.56,105.48,41.1683]
[1644570851014,442.32942699,105.56,105.48,40.9183]
[1644570851213,437.59042699,105.56,105.48,40.9183]
[1644570851614,423.36962699,105.56,105.48,43.30196791]
[1644570851815,411.86197683,105.56,105.48,35.27196791]
[1644570852614,411.83101055,105.56,105.48,35.27196791]
[1644570853035,411.86197683,105.56,105.48,35.27196791]
[1644570855135,411.83101055,105.56,105.48,35.27196791]
[1644570855336,411.83101055,105.56,105.48,99.36396791]
[1644570856137,4.76896628,105.58,105.52,14.2116]
[1644570856337,4.76796628,105.6,105.53,13.68]
[1644570856538,4.737,105.6,105.53,16.06366791]
[1644570856737,4.737,105.6,105.53,16.31366791]
[1644570857438,4.737,105.6,105.54,14.212]
[1644570857637,4.737,105.6,105.54,27.892]
[1644570858041,4.737,105.6,105.54,13.68]
[1644570858240,4.737,105.6,105.52,64.6038]
[1644570858539,4.737,105.6,105.52,59.8668]
[1644570859339,18.9527,105.6,105.52,59.8668]
[1644570860040,18.9527,105.6,105.52,13.68]
[1644570861244,4.737,105.6,105.52,13.93]
[1644570861449,4.737,105.6,105.52,40.74806791]
[1644570861645,4.737,105.6,105.52,97.41806791]
[1644570861844,0.03096628,105.61,105.53,4.736]
[1644570862044,4.76696628,105.62,105.54,61.0399]
[1644570862247,0.03096628,105.61,105.55,4.735]
[1644570862446,0.03096628,105.62,105.55,86.80608233]
[1644570862647,4.76596628,105.62,105.55,84.45475024]
[1644570862845,4.76596628,105.62,105.55,84.70475024]
[1644570863447,4.76596628,105.62,105.55,96.28038233]
[1644570863645,0.99336997,105.61,105.55,38.2361]
[1644570863845,4.735,105.6,105.55,38.2361]
[1644570864047,4.76596628,105.61,105.55,38.2361]
[1644570864247,5.24161033,105.63,105.55,38.2361]
[1644570864448,7.62527824,105.63,105.55,38.2361]
[1644570864849,5.24161033,105.63,105.56,43.32136498]
[1644570865048,5.21064405,105.63,105.56,43.32136498]
[1644570865848,5.21064405,105.63,105.56,43.57136498]
[1644570866049,5.21064405,105.63,105.56,57.78116498]
[1644570866250,5.21064405,105.63,105.56,62.51616498]
[1644570866453,5.21064405,105.63,105.56,87.76483289]
[1644570866749,0.47564405,105.63,105.57,171.01]
[1644570866949,0.47564405,105.63,105.58,13.68]
[1644570867151,0.47564405,105.63,105.58,64.60716791]
[1644570867355,0.03096628,105.69,105.58,121.52716791]
[1644570867658,4.733,105.68,105.6,70.8714]
[1644570867852,14.1765,105.71,105.61,232.07992172]
[1644570867853,0.03096628,105.7,105.61,232.07992172]
[1644570868057,4.94562356,105.77,105.61,291.13358963]
[1644570868058,0.03096628,105.68,105.61,291.13358963]
[1644570868256,0.03096628,105.7,105.62,227.68]
[1644570868452,0.03096628,105.73,105.64,227.68]
[1644570868653,0.03096628,105.7,105.65,75.081]
[1644570868852,0.03096628,105.73,105.65,246.341]
[1644570869051,0.03096628,105.76,105.66,49.99820369]
[1644570869254,4.94562356,105.77,105.68,46.72700779]
[1644570869255,0.03096628,105.73,105.68,46.72700779]
[1644570869452,0.03096628,105.75,105.69,13.68]
[1644570869656,0.03096628,105.76,105.7,18.9187]
[1644570869852,4.729,105.76,105.7,27.8697]
[1644570870053,4.97658984,105.77,105.7,27.8697]
[1644570870253,4.94562356,105.77,105.71,41.80359986]
[1644570870458,4.94562356,105.77,105.71,55.48359986]
[1644570870653,0.03096628,105.78,105.71,77.36009986]
[1644570870857,0.03096628,105.79,105.71,82.33709986]
[1644570871055,0.03096628,105.79,105.71,74.39909986]
[1644570871253,0.03096628,105.79,105.71,55.48359986]
[1644570871455,0.75882624,105.77,105.71,55.48359986]
[1644570871658,4.728,105.76,105.69,13.68]
[1644570871854,7.14263419,105.76,105.69,13.68]
[1644570872055,2.38366791,105.76,105.69,13.68]
[1644570872256,7.11266791,105.75,105.69,13.68]
[1644570872456,2.38366791,105.75,105.69,13.68]
[1644570872655,2.38366791,105.75,105.69,51.08938952]
[1644570872856,4.729,105.74,105.69,51.08938952]
[1644570873057,4.729,105.74,105.67,4.728]
[1644570873258,2.38366791,105.73,105.67,13.68]
[1644570873461,4.73,105.72,105.64,13.68]
[1644570873659,12.90296628,105.72,105.64,13.68]
[1644570873862,2.38366791,105.71,105.64,13.68]
[1644570874063,4.731,105.7,105.65,38.63934571]
[1644570874459,18.96356628,105.72,105.65,38.63934571]
[1644570874661,18.9326,105.72,105.65,38.63934571]
[1644570874861,2.38366791,105.71,105.65,38.63934571]
[1644570875062,4.76196628,105.72,105.65,52.31934571]
[1644570875264,364.81208563,105.73,105.65,52.31934571]
[1644570876067,364.81208563,105.73,105.65,52.56934571]
[1644570876565,364.81208563,105.73,105.65,54.95301362]
[1644570877266,364.81208563,105.73,105.65,69.14841362]
[1644570878571,364.81208563,105.73,105.65,68.89841362]
[1644570878764,364.81208563,105.73,105.65,66.76474571]
[1644570880168,364.81208563,105.73,105.65,66.51474571]
[1644570880370,1.96078343,105.72,105.65,27.8754]
[1644570880568,4.731,105.71,105.63,27.8775]
[1644570880767,7.11466791,105.71,105.61,55.31066791]
[1644570880967,13.71096628,105.7,105.58,6.08504267]
[1644570881171,4.76396628,105.69,105.57,4.733]
[1644570881372,12.56493804,105.68,105.58,42.31033723]
[1644570881568,0.03096628,105.67,105.6,35.07831457]
[1644570881772,12.56493804,105.68,105.6,35.07831457]
[1644570881773,4.733,105.66,105.6,35.07831457]
[1644570881973,0.03096628,105.67,105.6,35.07831457]
[1644570882172,4.733,105.66,105.6,35.07831457]
[1644570882373,0.03096628,105.67,105.6,35.07831457]
[1644570882571,4.733,105.66,105.6,35.07831457]
[1644570882972,501.0576634,105.67,105.6,35.07831457]
[1644570883272,501.0890197,105.67,105.6,35.32831457]
[1644570884474,501.0890197,105.67,105.6,49.53081457]
[1644570886378,501.0890197,105.67,105.6,49.28081457]
[1644570886578,501.0890197,105.67,105.6,35.07831457]
[1644570887798,501.0890197,105.67,105.6,35.32831457]
[1644570889098,501.0890197,105.67,105.6,35.07831457]
[1644570889300,509.4950197,105.67,105.6,35.07831457]
[1644570890401,514.2280197,105.67,105.6,35.07831457]
[1644570892101,514.2280197,105.67,105.6,35.32831457]
[1644570892301,509.4950197,105.67,105.6,35.32831457]
[1644570892502,501.0890197,105.67,105.6,35.32831457]
[1644570894006,501.0890197,105.67,105.6,36.68135724]
[1644570894206,501.0890197,105.67,105.6,48.05135724]
[1644570894407,501.0890197,105.67,105.6,104.72135724]
[1644570894705,0.0313563,105.67,105.61,3.73671058]
[1644570894908,0.0313563,105.69,105.63,1.35304267]
[1644570895107,0.0313563,105.7,105.65,35.68691387]
[1644570895307,0.0313563,105.74,105.65,35.93691387]
[1644570895507,4.73,105.73,105.65,35.93691387]
[1644570895709,4.73,105.73,105.65,49.69058178]
[1644570896309,4.73,105.73,105.65,120.55678178]
[1644570896511,4.73,105.73,105.65,121.90982445]
[1644570896711,0.0313563,105.74,105.67,47.77690985]
[1644570896909,0.0313563,105.76,105.69,36.07899245]